Cogmind - Beta 16 @@@ ROGUE MODE // 2026.01.12 @ 18:01:30 Player: MAXX-P31 Result: Destroyed by D-53 Grenadier with Mini Grenade Launcher Performance ------------- Evolutions (0) 0 Regions Visited (2) 400 Robots Destroyed (18) 90 Value Destroyed (387) 387 Prototype IDs (0) 0 Alien Tech Used (0) 0 Bonus (0) 0 TOTAL SCORE: 877 Bonus ------- None Cogmind --------- Core Integrity 0/250 Matter 218/300 Energy 71/100 System Corruption 0% Temperature Cool (2) Movement Walking (120) Location -10/Mines Parts ------- > --- POWER (1) -------- (None) > --- PROPULSION (2) --- Flexi-carbon Leg > --- UTILITY (2) ------ Small Storage Unit Armor Integrity Analyzer > --- WEAPON (2) ------- (None) > --- INVENTORY (8) ---- Light Treads Wheel High-capacity Storage Unit High-capacity Matter Pod (200) Sensor Array Peak State ------------ > --- POWER ------------ (None) > --- PROPULSION ------- Flexi-carbon Leg Flexi-carbon Leg > --- UTILITY ---------- Small Storage Unit Armor Integrity Analyzer > --- WEAPON ----------- Bore Cannon > --- INVENTORY -------- Light Treads Wheel High-capacity Storage Unit High-capacity Matter Pod Sensor Array Assault Rifle [Rating: 20] Favorites ----------- Power Ion Engine Engine Ion Engine Propulsion Light Treads Treads Light Treads Leg Flexi-carbon Leg Wheel Wheel Utility Small Storage Unit Device Seismic Detector Storage Small Storage Unit Processor Armor Integrity Analyzer Weapon Assault Rifle Ballistic Gun Assault Rifle Ballistic Cannon Bore Cannon Launcher Grenade Launcher Build | -11 -10 -10 ------- Run | Yrd Mat Min Slots Evolved . | . . . Power . | . . . Propulsion . | . . . Utility . | . . . Weapon . | . . . Parts Attached 18 | 7 3 8 Power 1 | 1 . . Engine 1 | 1 . . Core . | . . . Reactor . | . . . Propulsion 6 | 2 . 4 Treads 2 | 2 . . Leg 2 | . . 2 Wheel 2 | . . 2 Hover . | . . . Flight . | . . . Utility 3 | 2 . 1 Device 1 | 1 . . Storage 1 | 1 . . Processor 1 | . . 1 Hackware . | . . . Protection . | . . . Artifact . | . . . Weapon 8 | 2 3 3 Energy Gun . | . . . Energy Cannon . | . . . Ballistic Gun 5 | 2 2 1 Ballistic Cannon 1 | . . 1 Launcher 2 | . 1 1 Special Weapon . | . . . Impact Weapon . | . . . Slashing Weapon . | . . . Piercing Weapon . | . . . Special Melee Weapon . | . . . Unidentified Prototypes . | . . . Parts Lost 11 | . . 11 Power 1 | . . 1 Propulsion 5 | . . 5 Utility 1 | . . 1 Weapon 4 | . . 4 Highest Loss Streak 7 | . . 7 To Critical Strikes . | . . . Average Backups 6 | 1 5 7 Power . | . . . Propulsion 2 | 1 2 2 Utility 2 | . 2 3 Weapon 1 | . 1 1 Tool/Special . | . . . Unused Backups 6 | . 1 5 Power . | . . . Propulsion 2 | . . 2 Utility 4 | . 1 3 Weapon . | . . . Tool/Special . | . . . Average Slot Usage (%) 97 | . 100 95 Engine 13 | . 14 13 Treads 26 | . 28 24 Wheel 1 | . . 2 Device 12 | . 14 11 Storage 14 | . 14 14 Ballistic Gun 18 | . 22 15 Launcher 8 | . 5 11 Peak Build Rating 20 | 7 7 20 Average Rating 6 | 5 6 7 On Entrance 4 | . 7 7 Avg Prop Armor Cover (%) . | . . . Naked Turns . | . . . Heaviest Build 21 | 14 16 21 Greatest Support 40 | 40 40 40 Greatest Overweight (x) . | . . . Average Overweight (x) . | . . . Largest Inventory Capacity 8 | 8 8 8 Average Capacity 7 | 7 8 8 Most Carried 8 | 2 8 8 Average Carried 6 | 1 5 7 Final Capacity 8 | 8 8 8 Final Carried 8 | 2 8 5 Class Distribution -------------------- 100% | Mutant Dominant Class ---------------- Mutant | -10/Materials Mutant | -10/Mines Resources | -11 -10 -10 ----------- Run | Yrd Mat Min Matter Collected 842 | 304 354 184 Remotely . | . . . Salvage Created 664 | 85 342 237 Parts 38 | 10 22 6 Haulers Intercepted 1 | . 1 . Recyclers Shooed . | . . . Parts Field Recycled . | . . . Retrieved Matter . | . . . Parts Self-Destructed . | . . . Prevented . | . . . Parts Restored . | . . . Kills | -11 -10 -10 ------- Run | Yrd Mat Min Combat Hostiles Destroyed 19 | . 9 10 Guns 14 | . 8 6 AOE 5 | . 1 4 Classes Destroyed 7 | 2 4 1 Worker 1 | . 1 . Tunneler 3 | 2 . 1 Hauler 1 | . 1 . Recycler 2 | 1 . 1 Swarmer 3 | . 3 . Grunt 8 | . 6 2 Assembled 8 | . . 8 Best Kill Streak 5 | 2 5 4 Combat Bots Only 4 | . 4 4 Max Kills in Single Turn 1 | 1 1 1 Gunslinging . | . . . Exploded 1 | . 1 1 Melee . | . . . Uniques/NPCs Destroyed . | . . . Combat | -11 -10 -10 -------- Run | Yrd Mat Min Hostile Shots Fired 92 | . 43 49 Missed 24 | . 12 12 Hits 68 | . 31 37 Melee 7 | . . 7 Projectile 61 | . 31 30 AOE 17 | . . 17 Critical Strikes 2 | . 1 1 Damage Taken 1501 | . 367 1134 Core 283 | . 29 254 Absorbed by Shields . | . . . Core Remaining (%) 100 | 100 . . Volleys Fired 60 | 6 26 28 Largest 2 | 2 2 2 Hottest 78 | 40 50 78 Shots Fired 108 | 12 52 44 Gun 91 | 12 48 31 Cannon 4 | . . 4 Launcher 13 | . 4 9 Special . | . . . Kinetic 95 | 12 48 35 Thermal . | . . . Explosive 13 | . 4 9 Electromagnetic . | . . . Robot Hit Streak 10 | 6 10 6 Robot Miss Streak 3 | 1 3 3 Penetration Max . | . . . Secondary Targets 1 | . 1 . Max Gunslinging Chain 1 | . 1 . Shots Hit Robots 59 | 9 29 21 Core Hits 54 | 5 18 31 Critical Kills . | . . . Critical Parts Destroyed 1 | . . 1 Critical Strikes 1 | . . 1 Destroy 1 | . . 1 Melee Attacks . | . . . Impact . | . . . Slashing . | . . . Piercing . | . . . Sneak Attacks . | . . . Combat Hostiles . | . . . Follow-up Attacks . | . . . Damage Inflicted 1399 | 89 559 751 Guns 671 | 89 322 260 Cannons 23 | . . 23 Explosions 694 | . 234 460 Melee . | . . . Ramming 11 | . 3 8 Kinetic 694 | 89 322 283 Thermal . | . . . Explosive 694 | . 234 460 Electromagnetic . | . . . Impact . | . . . Slashing . | . . . Piercing . | . . . Highest Corruption . | . . . Average Corruption . | . . . Corruption Purged . | . . . Corruption Blocked . | . . . Overload Shots . | . . . Overflow Damage 16 | . . 16 Projectiles 7 | . . 7 Explosions 9 | . . 9 Melee . | . . . Knockbacks . | . . . Impact . | . . . Kinetic . | . . . Secondary . | . . . Self-Inflicted Damage 31 | . . 31 Shots 1 | . . 1 Rammed 4 | . 4 . Targets Rammed 5 | . 4 1 Kicked . | . . . Crushed 1 | . . 1 Highest Temperature 32 | . 18 32 Average Temperature 8 | . 4 11 Received Heat Transfer 245 | . 141 104 Siege Activations . | . . . Martial Activations . | . . . Shielding Activations . | . . . Robots Disrupted . | . . . Combat Hostiles . | . . . Robots Corrupted . | . . . Combat Hostiles . | . . . Parts Fried . | . . . Impact Corruptions . | . . . Robots Melted . | . . . Combat Hostiles . | . . . Parts Melted . | . . . Heat Transferred . | . . . Parts Sabotaged . | . . . Parts Stolen . | . . . Parts Stripped . | . . . Power Chain Reactions . | . . . Alert | -11 -10 -10 ------- Run | Yrd Mat Min Maximum Alert Level . | . . . Low Security (%) 100 | 100 100 100 Level 1 . | . . . Level 2 . | . . . Level 3 . | . . . Level 4 . | . . . Level 5 . | . . . High Security . | . . . Max Security . | . . . Peak Influence 95 | 10 95 79 Initial . | . . . Average 17 | 1 26 12 Influence Increases 367 | 15 246 106 Destroy 0b10 Robot/C 220 | . 180 40 Destroy 0b10 Robot/NC 35 | 15 10 10 Destroy Leader 42 | . 32 10 Successful Hack 6 | . 6 . Disable Machine 15 | . . 15 Destroy Structure 49 | . 18 31 Influence Decreases 367 | 15 246 106 Time Decay 278 | 15 171 92 Lost Part 14 | . . 14 Purge Threat 75 | . 75 . Squads Dispatched . | . . . Investigation . | . . . Extermination . | . . . Reinforcement . | . . . Assault . | . . . Garrison . | . . . Intercept . | . . . Searches Triggered . | . . . Construction Impeded . | . . . Haulers Reinforced . | . . . Active Scanning Responses . | . . . Cargo Convoy Interrupts . | . . . Stealth | -11 -10 -10 --------- Run | Yrd Mat Min Distress Signals 1 | . 1 . Communications Jammed . | . . . Distress Signals . | . . . Times Spotted 33 | . 14 19 Peak Tracking Total 10 | . 5 10 Tactical Retreats 4 | . . 4 Traps | -11 -10 -10 ------- Run | Yrd Mat Min Traps Triggered 1 | . 1 . Indirectly . | . . . Trap Hack Attempts . | . . . Triggered . | . . . Disarmed . | . . . Reprogrammed . | . . . Reused . | . . . Traps Extracted . | . . . Installed . | . . . Triggered . | . . . Machines | -11 -10 -10 ---------- Run | Yrd Mat Min Machines Disabled 1 | . . 1 Max in Single Turn 1 | . . 1 Machines Repaired . | . . . Machines Dismantled . | . . . Machines Sabotaged . | . . . Overloaded Fab Kills . | . . . Hacking | -11 -10 -10 --------- Run | Yrd Mat Min Machines Accessed 6 | . 6 . Terminals 5 | . 5 . Fabricators . | . . . Repair Stations . | . . . Recycling Units 1 | . 1 . Scanalyzers . | . . . Garrison Access . | . . . Total Hacks 14 | . 14 . Successful 5 | . 5 . Failed 9 | . 9 . Catastrophic 1 | . 1 . Database Lockouts . | . . . Manual 8 | . 8 . Terminals 13 | . 13 . Fabricators . | . . . Repair Stations . | . . . Recycling Units 1 | . 1 . Scanalyzers . | . . . Garrison Access . | . . . Terminal Hacks 4 | . 4 . Robot Analysis 3 | . 3 . Unreport Threat 1 | . 1 . Fabricator Hacks . | . . . Repair Station Hacks . | . . . Recycling Unit Hacks . | . . . Scanalyzer . | . . . Garrison Access Hacks . | . . . Unauthorized Hacks 1 | . 1 . Terminals . | . . . Fabricators . | . . . Repair Stations . | . . . Recycling Units 1 | . 1 . Monitor 1 | . 1 . Scanalyzers . | . . . Garrison Access . | . . . Data Cores Recovered . | . . . Used . | . . . Hacking Detections 5 | . 5 . Full Trace Events . | . . . Feedback Events . | . . . Feedback Blocked . | . . . Robot Schematics Acquired . | . . . Robots Built . | . . . Authchips . | . . . Time . | . . . Total Robot Build Rating . | . . . Part Schematics Acquired . | . . . Parts Built . | . . . Authchips . | . . . Time . | . . . Total Part Build Rating . | . . . Part Studies Acquired . | . . . Parts Repaired . | . . . Time . | . . . Parts Recycled . | . . . Recycled Matter . | . . . Retrieved Matter . | . . . Retrieved Components . | . . . Parts Scanalyzed . | . . . Part Schematics Acquired . | . . . Parts Damaged . | . . . Bothacking | -11 -10 -10 ------------ Run | Yrd Mat Min Used RIF Installer . | . . . Robots Hacked . | . . . Non-combat . | . . . Combat . | . . . Robot Hacks Applied . | . . . Relay Couplers Released . | . . . Fabnet Peak Effective % . | . . . Robots Rewired . | . . . Allies Hacked . | . . . Hacks Repelled . | . . . Allies | -11 -10 -10 -------- Run | Yrd Mat Min Total Allies . | . . . Largest Group . | . . . Highest-Rated Group . | . . . Highest-Rated Ally . | . . . Total Orders . | . . . Ally Attacks . | . . . Total Damage . | . . . Kills . | . . . Allies Corrupted . | . . . Allies Melted . | . . . Intel | -11 -10 -10 ------- Run | Yrd Mat Min Active Infowar (turns) 993 | 36 524 433 Seismic 993 | 36 524 433 Robot Analysis Total 3 | . 3 . Derelict Logs Recovered 2 | . . 2 Drone Launches . | . . . Drone Recoveries . | . . . Exploration | -11 -10 -10 ------------- Run | Yrd Mat Min Turns Passed 1179 | 113 524 542 Spaces Moved 572 | 46 244 282 Core 2 | 2 . . Treads 549 | 44 244 261 Legs 4 | . . 4 Wheels 17 | . . 17 Hover . | . . . Flight . | . . . Fastest Speed 50 | 50 160 90 Average Speed 157 | 155 160 155 Slowest Speed 160 | 160 160 160 Overloaded Moves . | . . . Propulsion Burnouts . | . . . Robots Hopped . | . . . Potential Cave-ins . | . . . Cave-ins Triggered . | . . . Exploration Rate (%) 42 | 4 55 67 Regions Visited 2 Branch Regions 1 Pre-discovered Areas . | . . . Known Exits Taken . | . . . Unknown Exits Taken 2 | 1 1 . Scrap Searched 1 | . . 1 Spaces Dug . | . . . Terrain Destroyed 66 | . 15 51 Melee . | . . . Projectile 3 | . . 3 AOE 63 | . 15 48 Terrain Rammed . | . . . Walls Destroyed . | . . . Machines Disabled . | . . . Actions | -11 -10 -10 --------- Run | Yrd Mat Min Total 745 | 74 330 341 Wait 69 | 11 44 14 Move 570 | 45 243 282 Hop . | . . . Pick Up 11 | 2 6 3 Fast Attach 12 | 8 1 3 Attach 6 | . . 6 Detach 2 | 1 1 . Swap 4 | . 2 2 Drop 6 | 1 3 2 Fire 60 | 6 26 28 Melee . | . . . Ram . | . . . Kick . | . . . Crush 5 | . 4 1 Escape Stasis . | . . . Rewire . | . . . Trap . | . . . Miscellaneous . | . . . Route ------- -11/Scrapyard -10/Materials (discovered 2 exits: [*Mat] / [*Min]) -10/Mines (discovered 2 exits: [*Mat] / [*Exi]) History --------- Turn | Location | Event 7 | -11/Scrapyard | Discovered new exit (range 16) 114 | -11/Scrapyard | Entered Materials 304 | -10/Materials | Build established: Mutant 484 | -10/Materials | Discovered new exit (range 13) 611 | -10/Materials | Discovered new exit (range 16) 638 | -10/Materials | Entered Mines 852 | -10/Mines | Learned 4 Materials zone layouts 854 | -10/Mines | Discovered new exit (range 7) 878 | -10/Mines | Learned Materials garrison access intel 921 | -10/Mines | Deemed a non-threat by the Exiles lab entrance 921 | -10/Mines | Discovered new exit (range 5) 1060 | -10/Mines | Assembled infested the area 1065 | -10/Mines | Assisted by a Guerilla fighting off Assembled 1113 | -10/Mines | Core integrity fell below 50% 1146 | -10/Mines | Lost 4 parts (2n1u1w) 1154 | -10/Mines | Found a hidden stash of uninstalled traps 1164 | -10/Mines | Core integrity fell below 20% 1180 | -10/Mines | Destroyed by D-53 Grenadier with Mini Grenade Launcher Last Messages --------------- 01140_ Acquired 26 matter. 01143_ Acquired Flexi-carbon Leg. 01147_ Dropped Assault Rifle. 01147_ Acquired Bore Cannon. 01149_ Acquired 58 matter. 01151_ Acquired Armor Integrity Analyzer. 01154_ A stash of uninstalled traps is collected here! 01161_ D-53 Grenadier suffers critical hit (Destroy). 01161_ Destroyed Shock Absorption System. 01162_ Com. Wheel destroyed. 01166_ Ion Engine destroyed. 01168_ Wheel destroyed. 01168_ Grenade Launcher destroyed. 01172_ Bore Cannon destroyed. 01172_ D-53 Grenadier destroyed. 01176_ The unstable cave ceiling collapses. 01176_ Assault Rifle destroyed. 01178_ Flexi-carbon Leg destroyed. Map ----- +----------------------------------------------------+ | | | | | | | | | | | | | | | | | | | | | | | | | | | | | | | | | | | ???????????????????????????????????????????????? | | ???????????????????????????????????????????????? | | ???????????????###########?##??????????????????? | | ???????????##### # # ######?????????????? | | ???????????# # #; ##????????????? | | ??????????### # % ##???????????? | | ??????????# % #???????????? | | ???####????#! % #??????????? | | ??## #???# | @ ;;#??????????????? | | ??# #???## d # ;#?????????????? | | ??# ##????# ##????????????????? | | ?## ##????## # ###;;#????????????????? | | ?# ##????# ##### #??? #??????????????? | | ?# ##???# ####### #??? ?????????????? | | ?## ##?## ##???? ???? ???????????? | | ??## ### ##??? ????? ??????????? | | ?#### #??? ?????????????????? | | ?# ### #???# ????????????????? | | ?# ##??# #????### ???????????????? | | ?# #??## ##?????# ???????????????? | | ?#### ##??# ??????# ????????????????? | | ????# ##??## ??????????????????????? | | ????# #???# ?????????????????????? | | ????# #???# #????????????????????? | | ????# #???# ## ????????????????????? | | ????# ##???# #?# ?????????????????????? | | ????# ####????? #?????????????????????????? | | ????# #???????? ??????????????????????????? | | ????# #????????? #??????????????????????????? | | ????# #?????????# #???????#??????????????????? | | ????# #??????#### #?????? #??????????????????? | | ????# #?????## #?????? #??????????????????? | | ????# ####### ####?? #??????????????????? | +----------------------------------------------------+ Best States ------------- Heat Dissipation 25 Energy Generation 10 Energy Capacity 250 Matter Stores 300 Matter Capacity 300 Sight Range 16 Terrain Scan Density 10 Evasion (%) 45 Armor Integrity Analysis 30 Recoil Reduction 2 Item Schematics ----------------- None Robot Schematics ------------------ None Fabricated ------------ Nothing Repaired ---------- Nothing Studied --------- None Alien Tech Used ----------------- None Achievements -------------- None Challenges ------------ None Game ------ Seed JammingHackingDeconstructor Manual? 0 Play Time 00:09:39 Cumulative 277.3 hours Start 2026.01.12 @ 17:51:04 End 2026.01.12 @ 18:01:30 Sessions 1 Manual Loads 0 Difficulty Rogue Special Mode None Game No. 145 Rogue 145 Adventurer 0 Explorer 0 Win Type - Total 5 Types 5/0/0/0/0/0/0/0/0/0 Lore% 55 Gallery% 64 Achievement% 42 Wizard Run 0 Options --------- Layout 1 ASCII 0 Keyboard 0 Movement Numpad Keybinds 0 Fullscreen 1 Font 24/Smallcaps Map View 50x35 Zoom Use 0% Tactical HUD 1 Map Filters NONE Filters NONE Steam 1 RUN: 8087b752-0d40-4705-b446-372f7200bf9e